bitfinex-derivatives/quotes_BTCF0:USTF0_20241103
["timestamp","ask_amount","ask_price","bid_price","bid_amount"]
[1730641590732,0.07332,68218.0,68216.0,0.07307677]
[1730641591024,0.07332,68218.0,68210.0,0.12035196]
[1730641591025,0.073322,68216.0,68215.0,0.07307677]
[1730641591224,0.073321,68217.0,68214.0,0.07307677]
[1730641591225,0.073323,68215.0,68214.0,0.07307677]
[1730641591921,0.073321,68217.0,68213.0,0.07307677]
[1730641591922,0.073324,68214.0,68213.0,0.07307677]
[1730641592430,0.073324,68214.0,68213.0,0.16297542]
[1730641593120,0.186204,68214.0,68213.0,0.16297542]
[1730641593320,0.186204,68214.0,68213.0,0.07307677]
[1730641593725,0.186204,68214.0,68206.0,0.3608]
[1730641593726,0.073325,68213.0,68212.0,0.07307677]
[1730641594026,0.073329,68209.0,68208.0,0.07307677]
[1730641594230,0.47368,68214.0,68207.0,0.0730549]
[1730641594424,0.43413,68208.0,68207.0,0.0730549]
[1730641594723,0.43413,68208.0,68207.0,0.16324611]
[1730641595627,0.43413,68208.0,68207.0,0.16321723]
[1730641596016,0.43413,68208.0,68207.0,0.0730549]
[1730641596215,0.3618,68208.0,68206.0,0.0730549]
[1730641596433,0.073331,68207.0,68206.0,0.0730549]
[1730641596634,0.3618,68208.0,68205.0,0.0730549]
[1730641596819,0.073332,68206.0,68205.0,0.0730549]
[1730641597623,0.073332,68206.0,68205.0,0.16331273]
[1730641597921,0.073332,68206.0,68205.0,0.09025783]
[1730641598122,0.073332,68206.0,68205.0,0.16328864]
[1730641598323,0.073332,68206.0,68205.0,0.16330927]
[1730641598525,0.073334,68205.0,68204.0,0.07305144]
[1730641598722,0.073336,68203.0,68202.0,0.07305144]
[1730641598925,0.073337,68202.0,68201.0,0.07305144]
[1730641599317,0.073337,68202.0,68201.0,0.0730754]
[1730641599523,0.073338,68201.0,68200.0,0.1021995]
[1730641600129,0.073338,68201.0,68187.0,0.434152]
[1730641600130,0.43988,68200.0,68191.0,0.03625236]
[1730641600438,0.073372,68169.0,68167.0,0.10253811]
[1730641600633,0.073372,68169.0,68164.0,0.434177]
[1730641600634,0.073369,68172.0,68170.0,0.073371]
[1730641600929,0.073369,68172.0,68171.0,0.09146765]
[1730641601723,0.073369,68172.0,68171.0,0.12356765]
[1730641601926,0.00220124,68183.0,68171.0,0.16765005]
[1730641602134,0.00220124,68183.0,68182.0,0.3608]
[1730641602326,0.00220124,68183.0,68175.0,0.3608]
[1730641602532,0.00220124,68183.0,68176.0,0.08943321]
[1730641602839,0.00220124,68183.0,68177.0,0.08943321]
[1730641603134,0.00220124,68183.0,68177.0,0.073363]
[1730641603135,0.073362,68179.0,68177.0,0.073363]
[1730641603333,0.00220124,68183.0,68175.0,0.3608]
[1730641603534,0.02665824,68183.0,68182.0,0.073358]
[1730641603833,0.073354,68187.0,68186.0,0.073354]
[1730641605740,0.074354,68187.0,68186.0,0.073354]
[1730641607035,0.073354,68186.0,68185.0,0.3608]
[1730641607539,0.073354,68186.0,68183.0,0.0302]
[1730641608536,0.001,68186.0,68183.0,0.0302]
[1730641608736,0.073346,68194.0,68193.0,0.073345]
[1730641609139,0.182577,68202.0,68185.0,0.3608]
[1730641609437,0.073354,68190.0,68185.0,0.3608]
[1730641609639,0.073354,68186.0,68185.0,0.3608]
[1730641610731,0.074354,68186.0,68185.0,0.3608]
[1730641611830,0.075354,68186.0,68185.0,0.3638]
[1730641612236,0.075354,68186.0,68185.0,0.003]
[1730641614928,0.074354,68186.0,68185.0,0.002]
[1730641615136,0.075354,68186.0,68185.0,0.003]
[1730641616244,0.515314,68186.0,68185.0,0.003]
[1730641616743,0.55125021,68186.0,68185.0,0.003]
[1730641620536,0.22053021,68186.0,68185.0,0.003]
[1730641621140,0.66053021,68186.0,68185.0,0.003]
[1730641622850,0.22057021,68186.0,68185.0,0.003]
[1730641623247,0.66053021,68186.0,68185.0,0.003]
[1730641624951,0.073367,68174.0,68173.0,0.0315]
[1730641625156,0.543447,68174.0,68173.0,0.0315]
[1730641625347,0.543447,68174.0,68162.0,0.3608]
[1730641625653,0.543447,68174.0,68155.0,0.03573211]
[1730641625654,0.3608,68165.0,68156.0,0.073386]
[1730641625852,0.073384,68158.0,68157.0,0.0333]
[1730641626643,0.07338,68162.0,68157.0,0.0333]
[1730641626947,0.07338,68162.0,68161.0,0.073381]
[1730641627147,0.00220138,68172.0,68157.0,0.0333]
[1730641627148,0.00220138,68172.0,68159.0,0.3608]
[1730641627349,0.10928,68171.0,68160.0,0.09005942]
[1730641627651,0.073375,68167.0,68166.0,0.073375]
[1730641628349,0.07338,68163.0,68162.0,0.07338]
[1730641629047,0.10928,68171.0,68159.0,0.3608]
[1730641629048,0.001,68167.0,68159.0,0.3608]
[1730641629257,0.073382,68160.0,68159.0,0.434183]
[1730641629442,0.3608,68174.0,68159.0,0.434183]
[1730641629443,0.3608,68200.0,68160.0,0.66092915]
[1730641629645,0.3608,68192.0,68174.0,0.3608]
[1730641629843,0.073365,68176.0,68175.0,0.0306]
[1730641632347,0.074365,68176.0,68175.0,0.0446]
[1730641632855,0.075365,68176.0,68175.0,0.0446]
[1730641633653,0.075365,68176.0,68175.0,0.117966]
[1730641634258,0.002,68176.0,68175.0,0.117966]
[1730641634564,0.075365,68176.0,68175.0,0.117966]
[1730641636945,0.075365,68176.0,68175.0,0.21150981]
[1730641637358,0.002,68176.0,68175.0,0.32301828]
[1730641637551,0.002,68176.0,68175.0,0.21150981]
[1730641637859,0.002,68176.0,68175.0,0.32298737]
[1730641638245,0.073363,68178.0,68176.0,0.073364]
[1730641638550,0.073363,68178.0,68177.0,0.27838537]
[1730641639453,0.07336,68181.0,68180.0,0.073356]
[1730641639659,0.07336,68181.0,68180.0,0.27821126]
[1730641640660,0.07336,68181.0,68180.0,0.16689981]
[1730641641459,0.07336,68181.0,68180.0,0.27833506]
[1730641641865,0.07436,68181.0,68180.0,0.18089981]
[1730641642048,0.07436,68181.0,68180.0,0.10754381]
[1730641642256,0.07436,68181.0,68180.0,0.29238954]
[1730641642768,0.07436,68181.0,68180.0,0.29230034]
[1730641643059,0.07436,68181.0,68180.0,0.21894535]
[1730641643254,0.07436,68181.0,68180.0,0.29230535]
[1730641643449,0.07536,68181.0,68180.0,0.29330535]
[1730641643649,0.07536,68181.0,68180.0,0.18190381]
[1730641644054,0.07536,68181.0,68180.0,0.26980482]
[1730641644259,0.07536,68181.0,68180.0,0.10854381]
[1730641646252,0.07536,68181.0,68180.0,0.015]
[1730641647652,0.07536,68181.0,68180.0,0.08825317]
[1730641647954,0.07536,68181.0,68180.0,0.18189993]
[1730641648355,0.07536,68181.0,68180.0,0.08825317]
[1730641648659,0.07536,68181.0,68180.0,0.18185295]
[1730641649458,0.07536,68181.0,68180.0,0.1817936]
[1730641649662,0.07536,68181.0,68180.0,0.1084336]
[1730641649866,0.51536,68181.0,68180.0,0.015]
[1730641652256,0.07536,68181.0,68180.0,0.015]
[1730641653154,0.18356,68181.0,68180.0,0.015]
[1730641654163,0.07536,68181.0,68180.0,0.015]
[1730641654663,0.18356,68181.0,68180.0,0.015]
[1730641656861,0.07536,68181.0,68180.0,0.015]
[1730641657065,0.18356,68181.0,68180.0,0.015]
[1730641660371,0.18356,68181.0,68180.0,0.0736107]
[1730641660756,0.07536,68181.0,68180.0,0.0736107]
[1730641660962,0.6216,68181.0,68180.0,0.0736107]
[1730641661160,0.6216,68181.0,68180.0,0.015]
[1730641665866,0.07536,68181.0,68180.0,0.015]
[1730641666269,0.1816,68181.0,68180.0,0.015]
[1730641666570,0.07536,68181.0,68180.0,0.015]
[1730641666770,0.1816,68181.0,68180.0,0.015]
[1730641667069,0.07536,68181.0,68180.0,0.015]
[1730641668976,0.1816,68181.0,68180.0,0.015]
[1730641669565,0.6216,68181.0,68180.0,0.015]
[1730641669871,0.1816,68181.0,68180.0,0.015]
[1730641673578,0.9032,68181.0,68180.0,0.015]
[1730641678287,0.79696,68181.0,68180.0,0.08825145]
[1730641678486,0.1816,68181.0,68180.0,0.10879068]
[1730641678779,0.1816,68181.0,68180.0,0.19668942]
[1730641679180,0.1816,68181.0,68180.0,0.10879068]
[1730641679181,0.43616,68181.0,68180.0,0.10879068]
[1730641679367,0.5424,68181.0,68180.0,0.10879068]
[1730641679865,0.5424,68181.0,68180.0,0.18211007]
[1730641680270,0.5424,68181.0,68180.0,0.10879068]
[1730641680473,0.5424,68181.0,68180.0,0.08831907]
[1730641680873,0.5424,68181.0,68180.0,0.015]
[1730641683979,0.5424,68181.0,68168.0,0.08935532]
[1730641683980,0.073372,68169.0,68168.0,0.0307]
[1730641684176,0.179612,68169.0,68168.0,0.0307]
[1730641685479,0.180612,68169.0,68168.0,0.0317]
[1730641686182,0.21663188,68169.0,68168.0,0.0457]
[1730641687179,0.181612,68169.0,68168.0,0.0457]
[1730641689072,0.181612,68169.0,68168.0,0.13965078]
[1730641690178,0.181612,68169.0,68168.0,0.13959545]
[1730641690573,0.181612,68169.0,68168.0,0.10889545]
[1730641690778,0.075372,68169.0,68168.0,0.19686817]
[1730641691079,0.179932,68169.0,68168.0,0.10889545]
[1730641693294,0.179932,68169.0,68168.0,0.18219985]
[1730641693478,0.179932,68169.0,68168.0,0.0883044]
[1730641693978,0.075372,68169.0,68168.0,0.0883044]
[1730641694182,0.179932,68169.0,68168.0,0.015]
[1730641694387,0.075372,68169.0,68168.0,0.015]
[1730641694885,0.075372,68169.0,68168.0,0.1088585]
[1730641695082,0.075372,68169.0,68168.0,0.6223115]
[1730641695676,0.075372,68169.0,68168.0,0.5489385]
[1730641696479,0.074372,68169.0,68168.0,0.6223115]
[1730641696681,0.03559039,68175.0,68169.0,0.073371]
[1730641696906,0.073369,68172.0,68171.0,0.3608]
[1730641697191,0.3608,68184.0,68171.0,0.3608]
[1730641697380,0.073365,68176.0,68171.0,0.3608]
[1730641697580,0.073365,68176.0,68175.0,0.073366]
[1730641697990,0.073365,68176.0,68175.0,0.513406]
[1730641698188,0.3608,68184.0,68175.0,0.44004]
[1730641698493,0.073367,68174.0,68173.0,0.073368]
[1730641698694,0.073368,68173.0,68172.0,0.0323]
[1730641699085,0.073368,68173.0,68172.0,0.47238]
[1730641699289,0.073368,68173.0,68172.0,0.0323]
[1730641700086,0.001,68173.0,68172.0,0.24167723]
[1730641700392,0.074368,68173.0,68172.0,0.24167723]
[1730641700587,0.178928,68173.0,68172.0,0.0978585]
[1730641701001,0.179928,68173.0,68172.0,0.0998585]
[1730641701200,0.21535981,68173.0,68172.0,0.0998585]
[1730641701502,0.21535981,68173.0,68172.0,0.006]
[1730641702995,0.07337,68171.0,68170.0,0.10259273]
[1730641703195,0.43417,68171.0,68170.0,0.10259273]
[1730641704419,0.43517,68171.0,68170.0,0.10359273]
[1730641705194,0.43517,68171.0,68170.0,0.001]
[1730641705388,0.87525,68171.0,68159.0,0.05861619]
[1730641705593,0.87525,68171.0,68157.0,0.3608]
[1730641705594,0.073376,68166.0,68158.0,0.05861619]
[1730641705895,0.073383,68159.0,68158.0,0.05861619]
[1730641706292,0.073384,68158.0,68157.0,0.3608]
[1730641708095,0.074384,68158.0,68157.0,0.3608]
[1730641708893,0.073387,68155.0,68154.0,0.10567024]
[1730641709399,0.073387,68155.0,68154.0,0.0324]
[1730641710596,0.074387,68155.0,68154.0,0.0324]
[1730641711105,0.075387,68155.0,68154.0,0.0324]
[1730641712609,0.075387,68155.0,68154.0,0.23810283]
[1730641713201,0.075387,68155.0,68154.0,0.23815873]
[1730641713411,0.075387,68155.0,68154.0,0.20575873]
[1730641715297,0.075387,68155.0,68146.0,0.03]
[1730641715298,0.515547,68155.0,68146.0,0.21986348]
[1730641715498,0.073395,68148.0,68147.0,0.11173004]
[1730641715895,0.3608,68150.0,68145.0,0.3608]
[1730641715896,0.073397,68146.0,68145.0,0.3608]
[1730641716209,0.073397,68146.0,68145.0,0.44872491]
[1730641716604,0.073397,68146.0,68145.0,0.3608]
[1730641717399,0.073397,68146.0,68145.0,0.44865532]
[1730641717602,0.177997,68146.0,68145.0,0.3608]
[1730641718102,0.073397,68146.0,68145.0,0.3608]
[1730641718302,0.177997,68146.0,68145.0,0.44865403]
[1730641718510,0.177997,68146.0,68145.0,0.3608]
[1730641718900,0.178997,68146.0,68145.0,0.3608]
[1730641719305,0.074397,68146.0,68145.0,0.3608]
[1730641719499,0.178997,68146.0,68145.0,0.3608]
[1730641719699,0.179997,68146.0,68145.0,0.3608]
[1730641720506,0.075397,68146.0,68145.0,0.3608]
[1730641720704,0.180957,68146.0,68145.0,0.3608]
[1730641721009,0.075397,68146.0,68145.0,0.3608]
[1730641721204,0.073394,68149.0,68147.0,0.073396]
[1730641721405,0.073395,68148.0,68147.0,0.073396]
[1730641721607,0.073396,68147.0,68146.0,0.0296]
[1730641721800,0.10556,68159.0,68145.0,0.3608]
[1730641721801,0.073397,68146.0,68145.0,0.3608]
[1730641722915,0.073397,68146.0,68145.0,0.41932592]
[1730641723206,0.073397,68146.0,68145.0,0.41932583]
[1730641723599,0.073397,68146.0,68145.0,0.3608]
[1730641724198,0.073397,68146.0,68145.0,0.4046936]
[1730641724708,0.074397,68146.0,68145.0,0.4046936]
[1730641724915,0.074397,68146.0,68145.0,0.3608]
[1730641725603,0.075397,68146.0,68145.0,0.3608]
[1730641726105,0.075397,68146.0,68145.0,0.0438936]
[1730641726309,0.075397,68146.0,68142.0,0.05852308]
[1730641726508,0.0734,68143.0,68142.0,0.05852308]
[1730641726815,0.0734,68143.0,68139.0,0.3608]
[1730641726816,0.073402,68141.0,68140.0,0.05852308]
[1730641727012,0.073404,68140.0,68139.0,0.41932308]
[1730641727315,0.073404,68140.0,68139.0,0.41931658]
[1730641727710,0.513684,68140.0,68139.0,0.1219984]
[1730641727906,0.513684,68140.0,68123.0,0.00013287]
[1730641727907,0.02200225,68139.0,68138.0,0.05852383]
[1730641728101,0.874484,68140.0,68138.0,0.05852383]
[1730641728102,0.3608,68140.0,68138.0,0.05852383]
[1730641728304,0.073405,68139.0,68138.0,0.05852383]
[1730641728608,0.073405,68139.0,68132.0,0.07315262]
[1730641728609,0.073408,68136.0,68135.0,0.07315262]
[1730641728812,0.10556,68139.0,68134.0,0.0306]
[1730641729118,0.073409,68135.0,68134.0,0.0306]
[1730641730011,0.179009,68135.0,68134.0,0.0306]
[1730641730408,0.179009,68135.0,68134.0,0.12250726]
[1730641730808,0.180009,68135.0,68134.0,0.12250726]
[1730641731315,0.074409,68135.0,68134.0,0.12250726]
[1730641731516,0.075409,68135.0,68134.0,0.12250726]
[1730641731912,0.075409,68135.0,68134.0,0.17968214]
[1730641732306,0.075409,68135.0,68134.0,0.09190726]
[1730641734119,0.075409,68135.0,68134.0,0.17968214]
[1730641734309,0.075409,68135.0,68134.0,0.53222726]
[1730641734614,0.075409,68135.0,68134.0,0.44032]
[1730641735007,0.002,68135.0,68133.0,0.07314721]
[1730641735207,0.002,68135.0,68132.0,0.13654721]
[1730641735409,0.073411,68133.0,68132.0,0.0634]
[1730641735608,0.073411,68133.0,68132.0,0.13654721]
[1730641735809,0.002,68135.0,68132.0,0.95658983]
[1730641736012,0.002,68135.0,68134.0,0.07341]
[1730641736322,0.002,68135.0,68134.0,0.25304748]
[1730641736323,0.001,68135.0,68134.0,0.25304748]
[1730641736509,0.002,68135.0,68134.0,0.99336748]
[1730641736710,0.002,68135.0,68134.0,0.99337673]
[1730641737215,0.002,68135.0,68134.0,0.90559082]
[1730641737423,0.002,68135.0,68134.0,0.60559082]
[1730641738211,0.002,68135.0,68134.0,0.71515768]
[1730641738515,0.001,68135.0,68134.0,0.71519948]
[1730641738710,0.002,68135.0,68134.0,0.51373]
[1730641738915,0.002,68135.0,68134.0,0.60577346]
[1730641739111,0.075409,68135.0,68134.0,0.09204346]
[1730641740121,0.075409,68135.0,68134.0,0.16523932]
[1730641740310,0.075409,68135.0,68134.0,0.07319586]
[1730641740507,0.075409,68135.0,68134.0,0.16540314]
[1730641740712,0.075409,68135.0,68134.0,0.07319586]
[1730641741122,0.07341,68134.0,68133.0,0.07319586]
[1730641741324,0.002,68135.0,68132.0,0.0634]
[1730641741325,0.073411,68133.0,68132.0,0.0634]
[1730641741516,0.073411,68133.0,68132.0,0.15566563]
[1730641742118,0.073411,68133.0,68132.0,0.22888587]
[1730641742424,0.073411,68133.0,68132.0,0.15566563]
[1730641742623,0.073411,68133.0,68132.0,0.12326563]
[1730641742819,0.073411,68133.0,68132.0,0.23328435]
[1730641743716,0.074411,68133.0,68132.0,1.03440435]
[1730641743913,0.073407,68138.0,68132.0,0.82433734]
[1730641744114,0.073409,68135.0,68134.0,0.19068075]
[1730641744323,0.3608,68143.0,68134.0,0.32994171]
[1730641744630,0.3608,68143.0,68137.0,0.10256161]
[1730641744925,0.073405,68139.0,68138.0,0.20228435]
[1730641745515,0.073405,68139.0,68138.0,0.09226563]
[1730641746813,0.073405,68139.0,68138.0,0.20167867]
[1730641747222,0.074405,68139.0,68138.0,0.18020749]
[1730641747514,0.074405,68139.0,68138.0,0.20170757]
[1730641748022,0.074405,68139.0,68138.0,0.20270757]
[1730641748023,0.075405,68139.0,68138.0,0.20270757]
[1730641748526,0.075405,68139.0,68138.0,0.18119997]
[1730641748727,0.075405,68139.0,68138.0,0.20266157]
[1730641749117,0.075405,68139.0,68138.0,0.09326563]
[1730641749830,0.075405,68139.0,68138.0,0.20267131]
[1730641750218,0.10844,68139.0,68138.0,0.20267131]
[1730641750418,0.075405,68139.0,68138.0,0.20266365]
[1730641750617,0.075405,68139.0,68138.0,0.76905163]
[1730641750816,0.075405,68139.0,68138.0,0.64224628]
[1730641751020,0.075405,68139.0,68138.0,0.39136479]
[1730641751226,0.075405,68139.0,68138.0,0.83164479]
[1730641751724,0.075405,68139.0,68138.0,0.39136479]
[1730641751937,0.07535923,68139.0,68138.0,0.39136479]
[1730641752225,0.07535923,68139.0,68138.0,0.94888206]
[1730641752824,0.07535923,68139.0,68138.0,0.97563945]
[1730641753024,0.00195423,68139.0,68138.0,0.90505079]
[1730641753227,0.00195423,68139.0,68138.0,1.02229449]
[1730641753538,0.00195423,68139.0,68138.0,1.02229951]
[1730641753731,0.00195423,68139.0,68138.0,1.04891804]
[1730641753926,0.00195423,68139.0,68138.0,1.18020747]
[1730641754325,0.00195423,68139.0,68138.0,1.18080113]
[1730641755233,0.00195423,68139.0,68138.0,0.77845228]
[1730641755431,0.00195423,68139.0,68138.0,1.07845228]
[1730641757335,0.00195423,68139.0,68138.0,1.20473362]
[1730641757637,0.073394,68149.0,68138.0,1.4254388]
[1730641757835,0.073394,68149.0,68146.0,0.14663323]
[1730641758131,0.073395,68148.0,68146.0,0.073396]
[1730641758332,0.073395,68148.0,68147.0,0.0307]
[1730641759537,0.073395,68148.0,68147.0,0.47094]
[1730641759727,0.073395,68148.0,68147.0,0.544336]
[1730641760537,0.074395,68148.0,68147.0,0.546336]
[1730641760731,0.074395,68148.0,68147.0,0.58240371]
[1730641761539,0.075395,68148.0,68147.0,0.58440371]
[1730641762138,0.075395,68148.0,68147.0,0.14416371]
[1730641764940,0.002,68148.0,68147.0,0.34424659]
[1730641765738,0.075395,68148.0,68147.0,0.34424659]
[1730641769136,0.075395,68148.0,68147.0,0.27085059]
[1730641769446,0.075395,68148.0,68147.0,0.23478288]
[1730641770034,0.075395,68148.0,68147.0,0.30817888]
[1730641770644,0.032,68161.0,68147.0,0.67502288]
[1730641770852,0.073384,68158.0,68157.0,0.0878131]
[1730641771146,0.073384,68158.0,68157.0,0.09128028]
[1730641771343,0.073384,68158.0,68157.0,0.17908594]
[1730641771536,0.073384,68158.0,68157.0,0.09128028]
[1730641772440,0.032,68161.0,68157.0,0.09053042]
[1730641772747,0.073382,68160.0,68159.0,0.08779992]
[1730641773046,0.073382,68160.0,68159.0,0.04389995]
[1730641773443,0.032,68161.0,68160.0,0.073382]
[1730641773444,0.074381,68161.0,68160.0,0.073382]
[1730641773643,0.074381,68161.0,68160.0,0.11728031]
[1730641773832,0.074381,68161.0,68160.0,0.073382]
[1730641774342,0.073381,68161.0,68160.0,0.11727434]
[1730641774646,0.073381,68161.0,68160.0,0.073382]
[1730641774837,0.073382,68160.0,68159.0,0.006]
[1730641775646,0.073382,68160.0,68159.0,0.079383]
[1730641776537,0.073379,68163.0,68162.0,0.07338]
[1730641776954,0.3608,68166.0,68161.0,0.40468963]
[1730641776955,0.3608,68166.0,68165.0,0.073377]
[1730641777156,0.3608,68166.0,68165.0,0.11726487]
[1730641777453,0.3608,68166.0,68165.0,0.073377]
[1730641777843,0.434176,68166.0,68165.0,0.523757]
[1730641778039,0.434176,68166.0,68165.0,0.556457]
[1730641778352,0.435176,68166.0,68165.0,0.61799027]
[1730641779743,0.074376,68166.0,68165.0,0.559457]
[1730641779945,0.074376,68166.0,68165.0,0.73829792]
[1730641780150,0.074376,68166.0,68165.0,0.21037801]
[1730641780452,0.074376,68166.0,68165.0,0.65249801]
[1730641780453,0.002,68166.0,68165.0,0.65249801]
[1730641780843,0.002,68166.0,68165.0,0.74030023]
[1730641781043,0.002,68166.0,68165.0,0.9610543]
[1730641781242,0.002,68166.0,68165.0,0.96104155]
[1730641781558,0.002,68166.0,68165.0,0.87325208]
[1730641781858,0.002,68166.0,68165.0,0.90848828]
[1730641782051,0.002,68166.0,68165.0,1.20848828]
[1730641782446,0.002,68166.0,68165.0,1.31711101]
[1730641782750,0.073366,68175.0,68165.0,1.31711101]
[1730641783054,0.073366,68175.0,68174.0,0.0731439]
[1730641783949,0.073366,68175.0,68174.0,0.16419563]
[1730641784154,0.074366,68175.0,68174.0,0.16419563]
[1730641784449,0.075366,68175.0,68174.0,0.0871439]
[1730641784651,0.075366,68175.0,68174.0,0.1605109]
[1730641784857,0.075366,68175.0,68174.0,0.25153246]
[1730641785052,0.075366,68175.0,68174.0,0.18038856]
[1730641785249,0.075366,68175.0,68174.0,0.2534967]
[1730641785552,0.075366,68175.0,68174.0,0.6935098]
[1730641785751,0.075366,68175.0,68174.0,0.089367]
[1730641786349,0.075366,68175.0,68174.0,0.25347803]
[1730641786756,0.075366,68175.0,68174.0,0.08910814]
[1730641786944,0.075366,68175.0,68174.0,0.016]
[1730641788255,0.075366,68175.0,68174.0,0.05986272]
[1730641788559,0.075366,68175.0,68174.0,0.016]
[1730641789463,0.073368,68173.0,68171.0,0.04386176]
[1730641789759,0.075366,68175.0,68170.0,0.04386176]
[1730641790059,0.43417,68171.0,68170.0,0.04386176]
[1730641790248,0.073373,68168.0,68167.0,0.05848327]
[1730641790963,0.3608,68171.0,68165.0,0.06874327]
[1730641790964,0.073376,68166.0,68165.0,0.06874327]
[1730641791257,0.073376,68166.0,68165.0,0.01026]
[1730641792460,0.073376,68166.0,68152.0,0.3608]
[1730641792461,0.073377,68165.0,68163.0,0.04388299]
[1730641792660,0.073382,68160.0,68159.0,0.05848327]
[1730641793166,0.073382,68160.0,68159.0,0.01027]
[1730641793856,0.073385,68157.0,68156.0,0.05848327]
[1730641794058,0.073385,68157.0,68154.0,0.05848327]
[1730641794059,0.3608,68157.0,68154.0,0.05848327]
[1730641794262,0.073387,68155.0,68154.0,0.05848327]
[1730641794563,0.073388,68154.0,68153.0,0.05848327]
[1730641794761,0.103688,68154.0,68153.0,0.05848327]
[1730641795272,0.103688,68154.0,68151.0,0.01247035]
[1730641795273,0.07339,68153.0,68152.0,0.04389323]
[1730641795570,0.073391,68152.0,68151.0,0.05636358]
[1730641796167,0.073391,68152.0,68151.0,0.05636407]
[1730641796468,0.073391,68152.0,68151.0,0.01247035]
[1730641796850,0.073391,68152.0,68151.0,0.05636453]
[1730641797067,0.073391,68152.0,68151.0,0.01247035]
[1730641798056,0.103891,68152.0,68151.0,0.00220035]
[1730641798968,0.104891,68152.0,68151.0,0.00320035]
[1730641799468,0.546091,68152.0,68151.0,0.00720035]
[1730641799857,0.546091,68152.0,68151.0,0.005]
[1730641800063,0.073404,68140.0,68139.0,0.01027]
[1730641800366,0.073407,68137.0,68135.0,0.04388093]
[1730641800569,0.434208,68136.0,68135.0,0.04388093]
[1730641800765,0.3608,68136.0,68134.0,0.04388093]
[1730641800970,0.073409,68135.0,68134.0,0.04388093]
[1730641801175,0.07341,68134.0,68133.0,0.05415093]
[1730641801382,0.07341,68134.0,68133.0,0.01027]
[1730641802171,0.07341,68134.0,68133.0,0.05412997]
[1730641802365,0.07341,68134.0,68133.0,0.01027]
[1730641803166,0.3608,68136.0,68133.0,0.10243343]
[1730641803360,0.434208,68136.0,68134.0,0.16520451]
[1730641803560,0.073409,68135.0,68133.0,0.07304108]
[1730641803756,0.07341,68134.0,68133.0,0.07304108]
[1730641804057,0.07341,68134.0,68131.0,0.07304108]
[1730641804058,0.073412,68132.0,68131.0,0.07304108]
[1730641804257,0.07341,68134.0,68129.0,0.08331108]
[1730641804476,0.073414,68130.0,68129.0,0.07304108]
[1730641804971,0.073414,68130.0,68128.0,0.00220152]
[1730641804972,0.073414,68130.0,68128.0,0.07520351]
[1730641805160,0.073415,68129.0,68128.0,0.00220152]
[1730641805860,0.073415,68129.0,68125.0,0.07300199]
[1730641806063,0.073419,68126.0,68125.0,0.07300199]
[1730641806264,0.073419,68126.0,68125.0,0.16340593]
[1730641806563,0.073419,68126.0,68125.0,0.35704229]
[1730641807458,0.073419,68126.0,68125.0,0.41536868]
[1730641807664,0.075419,68126.0,68125.0,0.41536868]
[1730641808166,0.075419,68126.0,68125.0,0.35704229]
[1730641810957,0.075419,68126.0,68125.0,0.35930756]
[1730641812369,0.075419,68126.0,68125.0,0.41760128]
[1730641812573,0.075419,68126.0,68125.0,0.35930756]
[1730641812767,0.002,68126.0,68125.0,0.43272756]
[1730641812979,0.3608,68146.0,68135.0,0.073408]
[1730641813272,0.073408,68136.0,68135.0,0.073408]
[1730641813666,0.073404,68140.0,68139.0,0.073405]
[1730641814070,0.073404,68140.0,68139.0,0.43271256]
[1730641814286,0.073404,68140.0,68139.0,0.35930756]
[1730641815278,0.074404,68140.0,68139.0,0.41758834]
[1730641815482,0.074404,68140.0,68139.0,0.35930756]
[1730641815668,0.074404,68140.0,68139.0,0.41758834]
[1730641815983,0.074404,68140.0,68139.0,0.35930756]
[1730641816679,0.001,68140.0,68139.0,0.43271256]
[1730641817574,0.001,68140.0,68139.0,0.52410154]
[1730641817964,0.002,68140.0,68139.0,0.52510154]
[1730641818167,0.02400134,68141.0,68139.0,0.52510154]
[1730641818378,0.00220189,68150.0,68140.0,0.09138898]
[1730641818587,0.00220189,68150.0,68149.0,0.28364829]
[1730641819169,0.07559489,68150.0,68149.0,0.28591356]
[1730641819870,0.07559489,68150.0,68149.0,0.34432038]
[1730641820070,0.07559489,68150.0,68149.0,0.28591356]
[1730641820282,0.07559489,68150.0,68149.0,0.44985697]
[1730641820477,0.07559489,68150.0,68149.0,0.37684844]
[1730641820990,0.07339,68153.0,68149.0,0.81704844]
[1730641821173,0.07339,68153.0,68152.0,0.35671855]
[1730641821370,0.07339,68153.0,68152.0,0.44797417]
[1730641821677,0.3608,68155.0,68152.0,0.44797417]
[1730641821678,0.3608,68155.0,68153.0,0.07339]
[1730641821876,0.3608,68155.0,68154.0,0.23717604]
[1730641822181,0.3608,68155.0,68154.0,0.45000118]
[1730641822981,0.3608,68155.0,68154.0,0.44996287]
[1730641823177,0.3608,68163.0,68154.0,0.37657487]
[1730641823370,0.073387,68155.0,68154.0,0.28591356]
[1730641823577,0.073387,68155.0,68154.0,0.37647424]
[1730641823777,0.073387,68155.0,68154.0,0.28591356]
[1730641824384,0.074387,68155.0,68154.0,0.28591356]
[1730641824578,0.514547,68155.0,68154.0,0.28591356]
[1730641825092,0.515547,68155.0,68154.0,0.28991356]
[1730641825286,0.075387,68155.0,68154.0,0.28991356]
[1730641826580,0.515547,68155.0,68154.0,0.28991356]
[1730641830088,0.515547,68155.0,68154.0,0.21386856]
[1730641830285,0.515547,68155.0,68154.0,5.6e-07]
[1730641834786,0.620107,68155.0,68154.0,5.6e-07]
[1730641836780,0.651707,68155.0,68154.0,5.6e-07]
[1730641837186,0.211547,68155.0,68154.0,5.6e-07]
[1730641837496,0.651707,68155.0,68154.0,5.6e-07]
[1730641839899,0.0734,68143.0,68142.0,0.05848536]
[1730641840084,0.9006,68143.0,68142.0,0.05848536]
[1730641840284,0.9006,68143.0,68138.0,0.05848536]
[1730641840285,0.073401,68142.0,68138.0,0.05848536]
[1730641840488,0.073405,68139.0,68138.0,0.05848536]
[1730641840994,0.073405,68139.0,68118.0,0.073427]